bitfinex/quotes_SOLUSD_20250415
["timestamp","ask_amount","ask_price","bid_price","bid_amount"]
[1744725265396,1.0,132.81,132.72,57.05695144]
[1744725265579,1.0,132.85,132.7,64.0534]
[1744725265775,20.78,132.86,132.72,57.05695144]
[1744725265971,1.0,132.9,132.83,57.05695144]
[1744725266178,22.62,132.92,132.71,6.5684]
[1744725266384,1.0,132.94,132.86,57.05695144]
[1744725266686,22.62,132.98,132.93,57.05695144]
[1744725266893,22.62,132.98,132.93,7.5223]
[1744725267104,1.0,132.97,132.93,7.5223]
[1744725267280,1.0,133.0,132.95,57.05695144]
[1744725267481,1.0,133.01,132.97,57.05695144]
[1744725267686,235.2,133.02,132.93,64.57925144]
[1744725267996,65.74268323,133.05,133.01,57.05695144]
[1744725267997,21.64,133.05,133.01,57.05695144]
[1744725268195,1.0,133.08,133.02,57.05695144]
[1744725268400,1.0,133.1,133.06,57.05695144]
[1744725268705,1.0,133.14,133.09,57.05695144]
[1744725268911,1.0,133.16,133.12,57.05695144]
[1744725269208,1.0,133.2,133.15,57.05695144]
[1744725269404,1.0,133.22,133.17,57.05695144]
[1744725269616,57.05695144,133.19,133.1,26.2959]
[1744725269812,1.0,133.15,133.1,7.5131]
[1744725270105,1.0,133.16,133.13,57.05695144]
[1744725270492,1.0,133.22,133.15,57.05695144]
[1744725270806,57.05695144,133.22,133.15,7.5103]
[1744725271108,57.05695144,133.2,133.12,7.512]
[1744725271415,1.0,133.18,133.15,57.05695144]
[1744725271703,58.05695144,133.17,133.12,64.56895144]
[1744725271897,58.05695144,133.17,133.03,234.38]
[1744725271898,1.0,133.12,133.01,37.5895]
[1744725272099,57.05695144,133.09,133.05,57.05695144]
[1744725272407,57.05695144,133.1,133.01,7.5182]
[1744725272603,1.0,133.11,133.07,57.05695144]
[1744725273107,1.0,133.11,133.07,64.57125144]
[1744725273280,57.05695144,133.08,133.04,7.5165]
[1744725273481,58.05695144,133.08,133.04,7.5165]
[1744725273682,1.0,133.1,133.04,7.5165]
[1744725273905,1.0,133.1,133.07,57.05695144]
[1744725274211,57.05695144,133.08,133.02,7.5176]
[1744725274394,57.05695144,133.07,133.02,7.5176]
[1744725274594,57.05695144,133.07,133.02,64.57455144]
[1744725274915,1.0,133.08,133.05,57.05695144]
[1744725275099,1.0,133.08,133.05,64.57275144]
[1744725275408,1.0,133.13,133.07,57.05695144]
[1744725275616,1.0,133.13,133.1,57.05695144]
[1744725275918,57.05695144,133.15,133.11,57.05695144]
[1744725275919,1.0,133.15,133.11,57.05695144]
[1744725276602,1.0,133.15,133.07,57.05695144]
[1744725276810,1.0,133.06,132.95,1.6525]
[1744725277021,1.0,133.05,133.0,57.05695144]
[1744725277318,58.05695144,133.05,133.01,57.05695144]
[1744725277489,1.0,133.05,133.02,57.05695144]
[1744725277692,1.0,133.05,132.98,18.7991]
[1744725277918,58.05695144,133.06,133.01,57.05695144]
[1744725278093,1.0,133.03,132.96,7.521]
[1744725278295,58.05695144,133.03,132.98,57.05695144]
[1744725278514,58.05695144,133.02,132.97,57.05695144]
[1744725278720,58.05695144,133.0,132.96,7.521]
[1744725279015,8.5211,132.96,132.86,7.5567]
[1744725279244,1.0,132.95,132.88,57.05695144]
[1744725279513,1.0,132.96,132.93,57.05695144]
[1744725279717,58.05695144,132.95,132.86,7.5567]
[1744725279893,115.11390288,132.95,132.86,0.03]
[1744725280091,1.0,132.89,132.86,0.03]
[1744725280307,58.05695144,132.89,132.86,0.03]
[1744725280508,1.0,132.89,132.86,0.03]
[1744725280816,1.0,132.92,132.88,57.05695144]
[1744725281017,1.0,132.94,132.91,57.05695144]
[1744725281321,1.0,132.95,132.92,57.05695144]
[1744725281526,1.0,132.94,132.9,64.58135144]
[1744725281818,1.0,132.94,132.86,75.90295144]
[1744725281819,58.05695144,132.91,132.86,0.03]
[1744725282123,58.05695144,132.87,132.86,0.03]
[1744725282619,22.3,132.92,132.86,0.03]
[1744725282620,1.0,132.91,132.86,64.61355144]
[1744725282825,23.3,132.95,132.9,57.05695144]
[1744725283029,1.0,132.99,132.94,64.57865144]
[1744725283328,1.0,132.97,132.94,64.57895144]
[1744725283623,57.05695144,132.95,132.86,0.03]
[1744725283824,57.05695144,132.9,132.86,0.03]
[1744725284009,1.0,132.93,132.86,0.03]
[1744725284199,57.05695144,132.92,132.87,57.05695144]
[1744725284401,57.05695144,132.92,132.87,64.58305144]
[1744725284722,58.05695144,132.9,132.86,0.03]
[1744725284921,1.0,132.93,132.86,57.08695144]
[1744725285105,1.0,132.9,132.86,57.08695144]
[1744725285429,58.05695144,132.9,132.86,0.03]
[1744725285615,1.0,132.9,132.86,0.03]
[1744725285818,58.05695144,132.9,132.86,0.03]
[1744725286030,57.05695144,132.9,132.86,0.03]
[1744725286235,58.05695144,132.89,132.86,0.03]
[1744725286613,57.05695144,132.93,132.86,0.03]
[1744725286614,57.05695144,132.87,132.86,0.03]
[1744725286821,58.05695144,132.87,132.86,0.03]
[1744725287214,1.0,132.87,132.86,0.03]
[1744725287920,58.05695144,132.87,132.86,0.03]
[1744725288806,122.64000288,132.87,132.86,0.03]
[1744725289033,1.0,132.81,132.76,57.05695144]
[1744725289233,58.05695144,132.81,132.74,7.5335]
[1744725289436,1.0,132.81,132.76,57.05695144]
[1744725290235,1.0,132.84,132.8,57.05695144]
[1744725290436,1.0,132.92,132.83,114.11390288]
[1744725290612,1.0,132.91,132.88,57.05695144]
[1744725290810,1.0,132.91,132.8,18.8253]
[1744725291011,1.0,132.94,132.89,57.05695144]
[1744725291240,1.0,132.91,132.89,57.05695144]
[1744725291540,1.0,132.89,132.86,57.05695144]
[1744725291749,1.0,132.84,132.78,26.3593]
[1744725292037,58.05695144,132.82,132.78,7.5312]
[1744725292212,1.0,132.82,132.78,64.58815144]
[1744725292417,1.0,132.83,132.78,7.5312]
[1744725292638,58.05695144,132.82,132.78,7.5312]
[1744725292840,57.05695144,132.81,132.76,57.05695144]
[1744725293013,1.0,132.82,132.78,57.05695144]
[1744725293218,1.0,132.85,132.81,57.05695144]
[1744725293531,1.0,132.85,132.74,18.8326]
[1744725293532,1.0,132.84,132.8,57.05695144]
[1744725293740,1.0,132.85,132.81,57.05695144]
[1744725294044,1.0,132.83,132.79,57.05695144]
[1744725294544,58.05695144,132.83,132.78,57.05695144]
[1744725294736,1.0,132.82,132.78,57.05695144]
[1744725295043,1.0,132.82,132.79,7.5306]
[1744725295734,58.05695144,132.83,132.79,7.5306]
[1744725295938,1.0,132.82,132.79,7.5306]
[1744725296123,57.05695144,132.8,132.77,7.5318]
[1744725296325,1.0,132.79,132.77,7.5318]
[1744725296835,1.0,132.79,132.75,57.05695144]
[1744725297017,1.0,132.78,132.74,26.3673]
[1744725297338,1.0,132.78,132.75,57.05695144]
[1744725297528,1.0,132.79,132.76,57.05695144]
[1744725297730,1.0,132.83,132.78,57.05695144]
[1744725297932,1.0,132.87,132.82,57.05695144]
[1744725298145,1.0,132.87,132.83,57.05695144]
[1744725298351,1.0,132.88,132.79,57.05695144]
[1744725298533,1.0,132.91,132.79,57.05695144]
[1744725298733,1.0,132.88,132.85,57.05695144]
[1744725298928,1.0,132.84,132.75,7.5329]
[1744725299230,1.0,132.81,132.75,26.3641]
[1744725299545,1.0,132.81,132.78,57.05695144]
[1744725299751,1.0,132.83,132.8,57.05695144]
[1744725299947,1.0,132.82,132.75,26.3641]
[1744725300458,1.0,132.89,132.81,57.05695144]
[1744725300756,1.0,132.83,132.75,26.3641]
[1744725300957,1.0,132.77,132.72,57.05695144]
[1744725301160,57.05695144,132.78,132.69,2.5795151]
[1744725301450,58.05695144,132.76,132.7,7.5357]
[1744725301769,58.05695144,132.76,132.71,57.05695144]
[1744725301770,1.0,132.75,132.71,57.05695144]
[1744725301949,58.05695144,132.75,132.7,7.5357]
[1744725302251,58.05695144,132.76,132.71,57.05695144]
[1744725302549,256.54,132.85,132.7,7.5357]
[1744725302550,1.0,132.8,132.75,57.05695144]
[1744725302748,1.0,132.78,132.7,26.3751]
[1744725303258,1.0,132.76,132.7,26.3751]
[1744725303456,1.0,132.75,132.7,7.5357]
[1744725303645,138.65695144,132.79,132.71,57.05695144]
[1744725303646,1.0,132.74,132.71,57.05695144]
[1744725303846,1.0,132.78,132.73,57.05695144]
[1744725304051,1.0,132.8,132.72,57.05695144]
[1744725304233,1.0,132.77,132.7,26.3751]
[1744725304435,1.0,132.78,132.7,26.3751]
[1744725304634,1.0,132.76,132.72,57.05695144]
[1744725304850,1.0,132.75,132.7,26.3751]
[1744725305052,1.0,132.77,132.72,57.05695144]
[1744725305263,1.0,132.75,132.7,26.3751]
[1744725305439,1.0,132.73,132.7,64.59265144]
[1744725305641,1.0,132.73,132.7,7.5357]
[1744725305959,1.0,132.7,132.69,2.5795151]
[1744725306136,58.05695144,132.7,132.69,2.5795151]
[1744725306335,58.05695144,132.7,132.69,0.9129151]
[1744725306553,1.0,132.66,132.65,0.03]
[1744725306738,58.05695144,132.66,132.65,0.03]
[1744725306940,122.65190288,132.66,132.65,0.03]
[1744725307145,65.59495144,132.66,132.65,0.03]
[1744725307352,122.65190288,132.66,132.65,0.03]
[1744725307551,122.65190288,132.66,132.55,18.8608]
[1744725307552,1.0,132.64,132.55,57.05695144]
[1744725307861,1.0,132.64,132.56,30.0]
[1744725307862,1.0,132.57,132.56,30.0]
[1744725308031,1.0,132.57,132.56,33.7984842]
[1744725308237,1.0,132.57,132.56,3.8284842]
[1744725308535,1.0,132.58,132.56,11.3718842]
[1744725308734,58.05695144,132.57,132.56,3.8284842]
[1744725308952,1.0,132.48,132.46,7.5494]
[1744725309131,1.0,132.47,132.42,21.5182085]
[1744725309341,57.05695144,132.45,132.42,2.6398085]
[1744725309531,57.05695144,132.51,132.42,0.6398085]
[1744725309532,57.05695144,132.46,132.42,0.6398085]
[1744725309729,57.05695144,132.45,132.42,0.6398085]
[1744725309943,57.05695144,132.51,132.42,0.6398085]
[1744725310133,57.05695144,132.44,132.42,0.6398085]
[1744725310540,138.65695144,132.51,132.42,0.6398085]
[1744725310769,57.05695144,132.43,132.42,0.6398085]
[1744725310939,7.5517,132.42,132.28,26.459]
[1744725311145,57.05695144,132.34,132.28,26.459]
[1744725311331,57.6292537,132.37,132.28,24.459]
[1744725311536,57.6292537,132.37,132.28,7.5597]
[1744725311740,57.6292537,132.31,132.28,7.5597]
[1744725311947,57.6292537,132.37,132.19,3.91423937]
[1744725311948,23.62,132.34,132.19,3.91423937]
[1744725312136,57.6292537,132.3,132.2,7.5642]
[1744725312547,57.6292537,132.3,132.19,3.91423937]
[1744725312758,20.0,132.32,132.2,57.6292537]
[1744725312952,85.1881537,132.3,132.17,7.566]
[1744725313163,27.5589,132.3,132.21,57.6292537]
[1744725313468,7.5576,132.32,132.17,26.481]
[1744725313860,57.6292537,132.3,132.17,7.566]
[1744725314165,57.6292537,132.18,132.15,2.6398085]
[1744725314369,57.6292537,132.23,132.15,2.6398085]
[1744725314567,57.6292537,132.16,132.15,2.6398085]
[1744725314743,115.2585074,132.16,132.15,2.6398085]
[1744725314946,1.0,132.13,132.01,11.48699363]
[1744725315147,1.0,132.11,132.01,3.91189363]
[1744725315449,7.568,132.14,132.01,3.91189363]
[1744725315450,1.0,132.09,132.01,3.91189363]
[1744725315671,1.0,132.13,131.96,7.5777]
[1744725315973,20.0,132.1,131.96,7.5777]
[1744725316154,20.0,132.1,132.01,1.0]
[1744725316653,20.0,132.13,132.0,1.0]
[1744725316861,20.0,132.17,132.01,1.0]
[1744725317170,20.0,132.2,132.09,1.5203]
[1744725317365,20.0,132.26,132.09,1.5203]
[1744725317568,20.0,132.24,132.16,57.6292537]
[1744725317745,20.0,132.32,132.16,58.6292537]
[1744725317943,77.6292537,132.34,132.23,57.6292537]
[1744725318166,20.0,132.34,132.23,57.6292537]
[1744725318466,6.2926,132.43,132.21,235.58]
[1744725318467,8.5532,132.4,132.21,235.58]
[1744725318673,7.5532,132.4,132.21,185.127494]
[1744725319051,7.5551,132.36,132.18,7.5654]
[1744725319251,28.5551,132.36,132.18,7.5654]
[1744725319452,57.6292537,132.23,132.11,7.5694]
[1744725319650,57.6292537,132.3,132.11,7.5694]
[1744725319651,1.0,132.27,132.11,7.5694]
[1744725319854,57.6292537,132.23,132.09,9.0904]
[1744725320055,20.0,132.24,132.09,66.7196537]
[1744725320252,20.0,132.27,132.09,28.0168]
[1744725320548,57.6292537,132.23,132.09,9.0904]
[1744725320776,57.6292537,132.16,132.0,1.5002]
[1744725321050,7.5689,132.12,132.01,30.0]
[1744725321251,20.0,132.11,132.0,1.5002]
[1744725321451,7.5681,132.14,132.0,1.5002]
[1744725321645,20.0,132.13,132.09,57.6292537]
[1744725321858,20.0,132.19,132.12,57.6292537]
[1744725322072,20.0,132.18,132.02,57.6292537]
[1744725322276,20.0,132.16,132.0,28.015]
[1744725322456,20.0,132.18,132.02,57.6292537]
[1744725322650,27.5641,132.21,132.12,57.6292537]
[1744725322855,20.0,132.27,132.16,57.6292537]
[1744725323050,7.5574,132.32,132.23,57.6292537]
[1744725323252,7.5574,132.32,132.17,7.566]
[1744725323253,7.5568,132.34,132.17,7.566]
[1744725323677,20.0,132.33,132.17,7.566]
[1744725323866,57.6292537,132.3,132.17,7.566]
[1744725324173,7.5568,132.34,132.17,26.481]
[1744725324474,57.6292537,132.19,132.09,6.015]
[1744725324674,57.6292537,132.23,132.08,7.5711]
[1744725324970,21.0,132.27,132.09,57.6292537]
[1744725325167,7.5608,132.26,132.18,57.6292537]
[1744725325386,20.0,132.34,132.25,57.6292537]
[1744725325673,57.6292537,132.32,132.26,57.6292537]
[1744725325857,57.6292537,132.31,132.16,57.6292537]
[1744725326068,241.8007,132.36,132.28,57.6292537]
[1744725326256,57.6292537,132.31,132.16,57.6292537]
[1744725326460,57.6292537,132.19,132.11,26.4929]
[1744725326781,57.6292537,132.23,132.11,7.5693]
[1744725326953,20.0,132.33,132.11,8.5693]
[1744725327283,235.72,132.36,132.26,57.6292537]
[1744725327589,57.6292537,132.31,132.25,57.6292537]
[1744725327766,235.72,132.36,132.23,57.6292537]
[1744725327956,63.9906537,132.37,132.23,57.6292537]
[1744725327957,57.6292537,132.37,132.23,57.6292537]
[1744725328153,7.554,132.38,132.18,6.2725]
[1744725328358,57.6292537,132.37,132.23,57.6292537]
[1744725328590,57.6292537,132.3,132.18,6.2725]
[1744725328753,57.6292537,132.37,132.28,57.6292537]
[1744725329077,0.063,132.39,132.35,57.6292537]
[1744725329295,0.063,132.39,132.31,7.5579]
[1744725329883,0.063,132.39,132.38,57.6292537]
[1744725330578,0.063,132.39,132.31,64.2429]
[1744725330755,0.063,132.39,132.38,57.6292537]
[1744725330955,0.063,132.39,132.37,57.6292537]
[1744725331152,0.063,132.39,132.38,65.1832537]
[1744725331356,0.063,132.39,132.38,7.554]
[1744725331585,20.0,132.6,132.38,143.3405074]
[1744725331775,7.5409,132.61,132.53,57.6292537]
[1744725331958,26.0134,132.62,132.44,57.6292537]
[1744725331959,30.0,132.54,132.44,57.6292537]
[1744725332163,57.6292537,132.65,132.53,57.6292537]
[1744725332490,57.6292537,132.61,132.51,57.6292537]
[1744725332691,57.6292537,132.65,132.44,57.6292537]
[1744725332692,8.5392,132.64,132.44,57.6292537]
[1744725332854,57.6292537,132.51,132.42,235.84]
[1744725333176,27.5431,132.57,132.38,65.852]
[1744725333356,57.6292537,132.5,132.44,57.6292537]
[1744725333554,57.6292537,132.51,132.38,28.082]
[1744725333761,57.6292537,132.41,132.36,7.5551]
[1744725333975,77.6292537,132.51,132.37,57.6292537]
[1744725334280,57.6292537,132.44,132.35,57.6292537]
[1744725334491,57.6292537,132.44,132.24,7.562]
[1744725334669,57.6292537,132.36,132.24,26.467]
[1744725334990,20.0,132.42,132.24,26.467]
[1744725335180,58.6292537,132.44,132.34,57.6292537]
[1744725335181,7.5511,132.43,132.34,57.6292537]
[1744725335490,101.6,132.49,132.3,57.6292537]
[1744725335688,57.6292537,132.38,132.29,7.5589]
[1744725335886,57.6292537,132.35,132.27,7.5602]
[1744725336077,57.6292537,132.44,132.33,57.6292537]
[1744725336387,20.0,132.53,132.43,57.6292537]
[1744725336595,57.6292537,132.45,132.3,57.6292537]
[1744725336898,57.6292537,132.36,132.27,7.5602]
[1744725337199,57.6292537,132.36,132.25,0.03]
[1744725337200,7.5535,132.39,132.3,57.6292537]
[1744725337374,7.5511,132.43,132.37,57.6292537]
[1744725337697,7.5454,132.53,132.42,57.6292537]
[1744725337874,235.7,132.57,132.46,57.6292537]
[1744725338076,13.9927,132.54,132.46,57.6292537]
[1744725338272,13.9927,132.54,132.43,57.6292537]
[1744725338494,7.5449,132.54,132.46,57.6292537]
[1744725338804,7.5449,132.54,132.44,57.6292537]
[1744725339093,7.5414,132.6,132.41,37.7595]
[1744725339317,57.6292537,132.49,132.43,57.6292537]
[1744725339472,57.6292537,132.45,132.39,65.1826537]
[1744725339668,57.6292537,132.51,132.4,57.6292537]
[1744725339980,20.0,132.52,132.38,7.5539]
[1744725340180,20.0,132.52,132.36,57.6292537]
[1744725340391,57.6292537,132.5,132.44,57.6292537]
[1744725340700,57.6292537,132.48,132.37,57.6292537]
[1744725340870,57.6292537,132.46,132.33,18.8921]
[1744725341070,20.0,132.55,132.43,65.1800537]
[1744725341391,57.6292537,132.51,132.45,57.6292537]
[1744725341591,57.6292537,132.48,132.39,7.5534]
[1744725341793,57.6292537,132.44,132.39,7.5534]
[1744725342003,57.6292537,132.45,132.39,65.1826537]
[1744725342298,20.0,132.53,132.39,65.1826537]
[1744725342299,46.403,132.56,132.43,57.6292537]
[1744725342479,57.6292537,132.45,132.39,7.5534]
[1744725342796,57.6292537,132.4,132.3,7.5585]
[1744725342973,57.6292537,132.36,132.31,57.6292537]
[1744725343189,57.6292537,132.37,132.31,57.6292537]
[1744725343385,57.6292537,132.38,132.32,57.6292537]
[1744725343583,7.5511,132.43,132.31,57.6292537]
[1744725343805,6.1114,132.47,132.37,57.6292537]
[1744725344014,57.6292537,132.45,132.39,57.6292537]
[1744725344181,57.6292537,132.43,132.3,121.8769537]
[1744725344383,57.6292537,132.42,132.37,57.6292537]
[1744725344587,57.6292537,132.42,132.3,121.8769537]
[1744725344588,57.6292537,132.39,132.3,26.4549]
[1744725344797,57.6292537,132.39,132.33,57.6292537]
[1744725345002,57.6292537,132.44,132.38,57.6292537]
[1744725345191,57.6292537,132.46,132.41,65.1814537]
[1744725345377,7.5471,132.5,132.41,65.1814537]
[1744725345582,7.5471,132.5,132.41,7.5522]
[1744725345782,57.6292537,132.43,132.38,7.554]
[1744725345994,46.415,132.5,132.38,7.554]
[1744725345995,57.6292537,132.42,132.38,7.554]
[1744725346194,46.415,132.5,132.38,7.554]
[1744725346396,7.5471,132.5,132.38,7.554]
[1744725346610,57.6292537,132.42,132.36,7.5551]
[1744725346904,57.6292537,132.39,132.31,7.558]
[1744725347085,57.6292537,132.44,132.31,65.1872537]
[1744725347284,57.6292537,132.37,132.31,7.558]
[1744725347495,57.6292537,132.37,132.32,57.6292537]
[1744725347687,20.0,132.48,132.31,7.558]
[1744725347894,7.5483,132.48,132.39,57.6292537]
[1744725348096,235.62,132.51,132.37,57.6292537]
[1744725348301,57.6292537,132.43,132.31,26.453]
[1744725348497,57.6292537,132.38,132.31,7.558]
[1744725348696,23.91231764,132.5,132.35,57.6292537]
[1744725348891,57.6292537,132.41,132.35,57.6292537]
[1744725349091,57.6292537,132.46,132.4,57.6292537]
[1744725349308,57.6292537,132.46,132.38,7.554]
[1744725349504,57.6292537,132.45,132.39,57.6292537]
[1744725349805,293.2492537,132.51,132.38,7.554]
[1744725349806,7.5471,132.5,132.38,7.554]
[1744725350005,57.6292537,132.44,132.32,7.5574]
[1744725350195,57.6292537,132.4,132.34,57.6292537]
[1744725350393,57.6292537,132.39,132.34,57.6292537]
[1744725350590,57.6292537,132.4,132.34,57.6292537]
[1744725350787,7.5471,132.5,132.39,57.6292537]
[1744725350992,7.5471,132.5,132.41,57.6292537]
[1744725351192,293.2492537,132.51,132.41,57.6292537]
[1744725351193,243.1671,132.51,132.41,57.6292537]
[1744725351522,57.6292537,132.44,132.38,57.6292537]
[1744725351696,319.6628537,132.51,132.32,18.8935]
[1744725351892,57.6292537,132.42,132.36,57.6292537]
[1744725352197,57.6292537,132.42,132.37,57.6292537]
[1744725352393,319.6628537,132.51,132.38,57.6292537]
[1744725352728,57.6292537,132.41,132.32,18.8935]
[1744725352895,57.6292537,132.41,132.36,57.6292537]
[1744725353223,319.6628537,132.51,132.38,57.6292537]
[1744725353224,57.6292537,132.44,132.38,57.6292537]
[1744725353388,57.6292537,132.46,132.4,57.6292537]
[1744725353807,57.6292537,132.47,132.41,57.6292537]
[1744725354118,7.5476,132.5,132.33,64.2332]
[1744725354119,57.6292537,132.44,132.33,64.2332]
[1744725354299,57.6292537,132.44,132.38,57.6292537]
[1744725354807,7.5476,132.5,132.4,57.6292537]
[1744725355130,26.4155,132.5,132.39,57.6292537]
[1744725355409,57.6292537,132.42,132.36,18.8874]
[1744725355616,18.8712,132.48,132.36,76.5166537]
[1744725355919,7.5477,132.49,132.39,57.6292537]
[1744725356099,57.6292537,132.45,132.39,57.6292537]
[1744725356312,57.6292537,132.43,132.38,57.6292537]
[1744725356609,57.6292537,132.39,132.35,7.5557]
[1744725356821,57.6292537,132.37,132.31,26.4518]
[1744725357118,37.3930493,132.5,132.31,26.4518]
[1744725357119,57.6292537,132.47,132.36,115.2585074]
[1744725357322,57.6292537,132.48,132.43,65.1803537]
[1744725357510,57.6292537,132.46,132.37,57.6292537]
[1744725357706,304.70821224,132.51,132.41,57.6292537]
[1744725357707,57.6292537,132.47,132.41,57.6292537]
[1744725357901,239.53225854,132.51,132.37,57.6292537]
[1744725358106,57.6292537,132.5,132.44,57.6292537]
[1744725358703,57.6292537,132.5,132.37,57.6292537]
[1744725358936,7.6072,132.56,132.47,57.6292537]
[1744725359104,7.6072,132.56,132.44,57.6292537]
[1744725359105,0.063,132.56,132.5,57.6292537]
[1744725359427,57.6922537,132.56,132.51,7.5466]
[1744725359602,57.6292537,132.55,132.51,7.5466]
[1744725359805,0.063,132.56,132.51,7.5466]
[1744725360019,0.063,132.56,132.53,57.6292537]
[1744725360209,0.063,132.56,132.51,7.5466]
[1744725360210,0.063,132.56,132.51,84.0423537]
[1744725360415,0.063,132.56,132.55,57.6292537]
[1744725360827,57.6292537,132.65,132.55,57.6292537]
[1744725361132,57.6292537,132.62,132.51,121.7753537]
[1744725361336,11.25296114,132.69,132.61,57.6292537]
[1744725361508,11.25296114,132.69,132.62,7.5403]
[1744725361705,11.25296114,132.69,132.55,1.6248]
[1744725361706,57.6292537,132.64,132.55,1.6248]
[1744725361901,18.78926114,132.69,132.56,7.5437]
[1744725362134,57.6292537,132.64,132.59,57.6292537]
[1744725362313,57.6292537,132.66,132.61,57.6292537]
[1744725362504,11.25296114,132.69,132.64,57.6292537]
[1744725362708,11.25296114,132.69,132.58,57.6292537]
[1744725362709,11.25296114,132.69,132.65,57.6292537]
[1744725362909,11.25296114,132.69,132.59,235.44]
[1744725363230,11.25296114,132.69,132.68,57.6292537]
[1744725363530,11.25296114,132.69,132.68,65.1661537]
[1744725363903,7.91976114,132.69,132.68,65.1661537]
[1744725364106,0.063,132.75,132.68,84.0084537]
[1744725364305,0.063,132.75,132.74,57.6292537]
[1744725364516,0.063,132.75,132.68,26.3792]
[1744725364734,57.6922537,132.75,132.68,7.5369]
[1744725364941,57.6292537,132.73,132.66,7.5375]
[1744725365122,0.063,132.75,132.66,26.3826]
[1744725365441,0.063,132.75,132.72,65.1637537]
[1744725365634,0.063,132.75,132.72,57.6292537]
[1744725365933,57.6292537,132.75,132.69,7.5362]
[1744725366111,57.6292537,132.79,132.69,7.5362]
[1744725366307,57.6292537,132.72,132.68,22.9050304]
[1744725366528,47.24503663,132.79,132.68,22.9050304]
[1744725366726,57.6292537,132.71,132.59,264.9424304]
[1744725366912,67.24503663,132.79,132.66,57.6292537]
[1744725367307,57.6292537,132.71,132.66,57.6292537]
[1744725367531,7.5323,132.76,132.68,57.6292537]
[1744725367730,7.5323,132.76,132.69,57.6292537]
[1744725367932,57.6292537,132.74,132.69,57.6292537]
[1744725368113,57.6292537,132.71,132.66,57.6292537]
[1744725368309,57.6292537,132.72,132.67,57.6292537]
[1744725368624,57.6292537,132.7,132.64,7.5386]
[1744725368831,57.6292537,132.69,132.6,7.5414]
[1744725369019,57.6292537,132.7,132.65,57.6292537]
[1744725369362,7.5323,132.76,132.68,57.6292537]
[1744725369637,7.5312,132.78,132.66,57.6292537]
[1744725369837,7.5312,132.78,132.71,57.6292537]
[1744725370043,2.6398085,132.82,132.73,57.6292537]
[1744725370343,57.6292537,132.78,132.65,57.6292537]
[1744725370651,57.6292537,132.77,132.72,57.6292537]
[1744725370816,57.6292537,132.78,132.65,57.6292537]
[1744725371012,2.6398085,132.82,132.75,57.6292537]
[1744725371325,57.6292537,132.79,132.74,57.6292537]
[1744725371525,57.6292537,132.78,132.73,57.6292537]
[1744725371840,7.5296,132.81,132.72,57.6292537]
[1744725372027,57.6292537,132.77,132.72,57.6292537]
[1744725372229,57.6292537,132.8,132.75,57.6292537]
[1744725372544,2.6398085,132.82,132.66,26.3819]
[1744725372545,2.6398085,132.82,132.76,57.6292537]
[1744725372836,57.6292537,132.77,132.66,64.0722]
[1744725373037,2.6398085,132.82,132.73,57.6292537]
[1744725373445,57.6292537,132.78,132.73,57.6292537]
[1744725373638,10.1689085,132.82,132.73,57.6292537]
[1744725373859,57.6292537,132.78,132.74,7.5335]
[1744725374054,2.6398085,132.82,132.76,57.6292537]
[1744725374270,57.6292537,132.81,132.76,57.6292537]
[1744725374466,2.6398085,132.82,132.74,7.5335]
[1744725374651,57.6292537,132.79,132.74,65.1627537]
[1744725374852,57.6292537,132.79,132.75,57.6292537]
[1744725375053,57.6292537,132.8,132.75,57.6292537]
[1744725375252,57.6292537,132.81,132.76,57.6292537]
[1744725375477,57.6292537,132.78,132.74,7.5335]
[1744725375667,57.6292537,132.79,132.74,65.1627537]
[1744725375983,57.6292537,132.8,132.75,57.6292537]
[1744725376275,2.6398085,132.82,132.79,57.6292537]
[1744725376577,2.6398085,132.82,132.8,57.6292537]
[1744725376784,2.6398085,132.82,132.81,57.6292537]
[1744725377158,14.0694,132.92,132.81,57.6292537]
[1744725377159,0.063,132.92,132.81,115.2585074]
[1744725377476,0.063,132.92,132.91,57.6292537]